bitfinex/quotes_SOLUSD_20241202
["timestamp","ask_amount","ask_price","bid_price","bid_amount"]
[1733159525059,0.38548579,226.17,226.13,28.203884]
[1733159525548,0.38548579,226.18,226.17,28.203884]
[1733159525747,6.2271,226.26,226.17,28.203884]
[1733159525748,0.38548579,226.21,226.17,28.203884]
[1733159525965,0.38548579,226.21,226.17,44.49084377]
[1733159526131,0.38548579,226.23,226.17,44.49084377]
[1733159526834,21.09944556,226.23,226.15,44.49084377]
[1733159527040,0.38548579,226.23,226.16,20.71395977]
[1733159527247,20.71395977,226.23,226.15,44.49084377]
[1733159527454,0.38548579,226.22,226.15,44.49084377]
[1733159527652,0.38548579,226.22,226.17,23.776884]
[1733159528054,0.38548579,226.22,226.17,44.49084377]
[1733159528361,0.38548579,226.23,226.17,44.49084377]
[1733159529267,0.38548579,226.23,226.19,23.776884]
[1733159529438,0.38548579,226.25,226.2,20.71395977]
[1733159529639,0.38548579,226.25,226.21,23.776884]
[1733159529847,0.38548579,226.26,226.22,20.71395977]
[1733159530163,0.38548579,226.28,226.23,23.776884]
[1733159530348,20.71395977,226.27,226.21,23.776884]
[1733159530553,21.09944556,226.26,226.21,23.776884]
[1733159530751,20.71395977,226.25,226.19,23.776884]
[1733159530955,6.136,226.32,226.16,23.776884]
[1733159530956,20.71395977,226.22,226.16,23.776884]
[1733159531148,20.71395977,226.2,226.13,23.776884]
[1733159531469,0.38548579,226.19,226.13,23.776884]
[1733159531766,20.71395977,226.22,226.14,20.71395977]
[1733159531963,0.38548579,226.21,226.14,20.71395977]
[1733159532151,0.38548579,226.21,226.15,20.71395977]
[1733159532668,0.38548579,226.21,226.16,23.776884]
[1733159533044,0.38548579,226.21,226.18,23.776884]
[1733159533239,21.09944556,226.24,226.18,23.776884]
[1733159533436,0.38548579,226.23,226.18,23.776884]
[1733159533756,21.09944556,226.23,226.16,23.902374]
[1733159535352,20.71395977,226.19,226.16,23.776884]
[1733159535556,20.71395977,226.19,226.11,25.26644977]
[1733159535557,0.38548579,226.18,226.13,0.12549]
[1733159535768,20.71395977,226.17,226.12,4.427]
[1733159536071,16.028,226.22,226.12,4.427]
[1733159536072,21.09944556,226.16,226.12,4.427]
[1733159536279,16.028,226.22,226.12,4.427]
[1733159536280,20.71395977,226.2,226.12,25.14095977]
[1733159536450,0.38548579,226.19,226.13,20.71395977]
[1733159537140,0.38548579,226.19,226.13,44.49084377]
[1733159537341,0.38548579,226.19,226.16,20.96493977]
[1733159537560,20.71395977,226.24,226.17,23.902374]
[1733159537776,0.38548579,226.23,226.17,23.902374]
[1733159538094,0.38548579,226.23,226.17,44.61633377]
[1733159538977,20.71395977,226.22,226.17,0.12549]
[1733159539156,0.38548579,226.21,226.17,0.12549]
[1733159540073,0.38548579,226.22,226.19,20.83944977]
[1733159540259,20.71395977,226.24,226.17,0.12549]
[1733159540443,21.09944556,226.23,226.17,0.12549]
[1733159540878,20.71395977,226.21,226.17,4.55249]
[1733159541055,0.38548579,226.2,226.18,23.776884]
[1733159541257,20.71395977,226.19,226.18,23.776884]
[1733159541767,20.71395977,226.19,226.17,4.427]
[1733159541970,21.09944556,226.18,226.1,4.427]
[1733159542172,0.38548579,226.18,226.13,20.83944977]
[1733159542371,20.71395977,226.24,226.16,25.14095977]
[1733159542679,0.38548579,226.23,226.16,25.14095977]
[1733159542975,21.09944556,226.23,226.16,4.427]
[1733159543184,21.09944556,226.23,226.17,28.329374]
[1733159544261,0.38548579,226.23,226.18,20.83944977]
[1733159544465,21.09944556,226.25,226.19,23.902374]
[1733159544665,20.71395977,226.21,226.19,23.776884]
[1733159544863,20.71395977,226.22,226.19,23.902374]
[1733159545069,0.38548579,226.21,226.19,23.902374]
[1733159545580,20.71395977,226.25,226.18,25.39193977]
[1733159545784,0.38548579,226.27,226.18,25.39193977]
[1733159545785,21.09944556,226.24,226.21,23.902374]
[1733159546356,0.38548579,226.24,226.21,23.902374]
[1733159546781,0.38548579,226.25,226.21,0.12549]
[1733159547282,20.71395977,226.23,226.2,0.12549]
[1733159547484,20.71395977,226.21,226.19,23.776884]
[1733159547787,21.09944556,226.2,226.1,26.89065977]
[1733159548086,20.71395977,226.15,226.08,35.84915977]
[1733159548257,20.71395977,226.16,226.09,20.83944977]
[1733159548460,0.38548579,226.15,226.09,20.83944977]
[1733159548660,21.09944556,226.15,226.08,15.1352]
[1733159548856,20.71395977,226.17,226.11,0.12549]
[1733159549168,20.71395977,226.19,226.13,20.71395977]
[1733159549374,21.09944556,226.22,226.13,0.12549]
[1733159549684,0.38548579,226.22,226.13,4.67798]
[1733159549864,20.71395977,226.23,226.18,23.902374]
[1733159550066,0.38548579,226.22,226.18,23.902374]
[1733159550280,0.38548579,226.22,226.18,0.12549]
[1733159550492,0.38548579,226.22,226.17,0.25098]
[1733159550863,0.38548579,226.22,226.18,20.71395977]
[1733159551180,20.71395977,226.25,226.19,24.027864]
[1733159551378,21.09944556,226.24,226.19,23.902374]
[1733159551565,20.71395977,226.21,226.19,0.12549]
[1733159551769,0.38548579,226.2,226.19,0.12549]
[1733159552168,20.71395977,226.21,226.19,0.12549]
[1733159553193,21.09944556,226.26,226.2,23.776884]
[1733159553358,20.71395977,226.25,226.21,0.12549]
[1733159553563,21.09944556,226.24,226.21,0.12549]
[1733159553760,20.71395977,226.23,226.21,0.12549]
[1733159554288,20.71395977,226.25,226.21,0.12549]
[1733159554479,0.38548579,226.24,226.21,0.12549]
[1733159554785,21.09944556,226.28,226.21,20.96493977]
[1733159554970,20.71395977,226.27,226.21,0.25098]
[1733159555167,0.38548579,226.26,226.21,0.25098]
[1733159555890,21.09944556,226.26,226.2,23.75936894]
[1733159556192,21.09944556,226.26,226.19,0.12549]
[1733159556391,0.38548579,226.26,226.19,20.96493977]
[1733159556568,0.38548579,226.26,226.21,0.25098]
[1733159557265,20.71395977,226.29,226.23,24.027864]
[1733159557467,0.38548579,226.28,226.23,24.027864]
[1733159558394,0.38548579,226.28,226.21,20.71395977]
[1733159558395,0.38548579,226.28,226.22,24.027864]
[1733159558580,20.71395977,226.32,226.25,20.71395977]
[1733159558786,0.38548579,226.34,226.26,44.74182377]
[1733159558787,20.71395977,226.33,226.26,44.74182377]
[1733159558999,20.71395977,226.33,226.23,0.12549]
[1733159559000,21.09944556,226.34,226.28,24.027864]
[1733159559291,20.71395977,226.32,226.28,0.12549]
[1733159559598,21.09944556,226.31,226.27,0.12549]
[1733159559808,21.09944556,226.31,226.25,0.25098]
[1733159560471,20.71395977,226.31,226.25,0.25098]
[1733159561094,0.38548579,226.3,226.25,0.25098]
[1733159564492,20.71395977,226.31,226.25,0.25098]
[1733159564996,0.38548579,226.3,226.27,0.12549]
[1733159565170,0.38548579,226.3,226.25,0.25098]
[1733159565679,0.38548579,226.31,226.25,0.25098]
[1733159566006,0.38548579,226.31,226.26,28.203884]
[1733159566196,12.89993221,226.27,226.2,12.89993221]
[1733159566396,12.89993221,226.25,226.18,12.89993221]
[1733159566689,13.285418,226.24,226.17,4.427]
[1733159566890,13.285418,226.24,226.14,16.5668]
[1733159566891,12.89993221,226.22,226.14,16.5668]
[1733159567093,0.38548579,226.21,226.15,0.12549]
[1733159567463,0.38548579,226.21,226.14,16.5668]
[1733159567668,21.04499207,226.21,226.14,16.5668]
[1733159567868,21.04499207,226.21,226.15,0.12549]
[1733159568678,21.04499207,226.21,226.16,0.12549]
[1733159569395,20.65950628,226.25,226.18,44.68737028]
[1733159569695,0.38548579,226.24,226.18,44.68737028]
[1733159569882,5.0,226.34,226.18,44.68737028]
[1733159569883,21.04499207,226.27,226.2,24.027864]
[1733159570080,0.38548579,226.26,226.2,44.68737028]
[1733159570296,21.04499207,226.26,226.2,24.027864]
[1733159570968,21.04499207,226.26,226.2,0.12549]
[1733159571988,20.65950628,226.25,226.2,0.12549]
[1733159572302,20.65950628,226.27,226.2,0.12549]
[1733159572500,0.38548579,226.26,226.21,0.12549]
[1733159573392,0.38548579,226.26,226.12,20.65950628]
[1733159573393,20.65950628,226.22,226.12,20.65950628]
[1733159573596,20.65950628,226.2,226.12,20.65950628]
[1733159573895,0.38548579,226.19,226.13,20.65950628]
[1733159574100,0.38548579,226.19,226.14,0.12549]
[1733159574303,0.38548579,226.19,226.13,25.08650628]
[1733159574681,0.38548579,226.19,226.14,23.902374]
[1733159574875,0.38548579,226.19,226.15,0.12549]
[1733159575990,0.38548579,226.19,226.16,23.902374]
[1733159576391,20.65950628,226.21,226.16,23.902374]
[1733159576580,0.38548579,226.2,226.16,23.902374]
[1733159576982,0.38548579,226.2,226.16,0.12549]
[1733159577202,20.65950628,226.17,226.03,20.65950628]
[1733159577399,20.65950628,226.15,226.07,20.65950628]
[1733159577709,0.38548579,226.14,226.07,20.65950628]
[1733159578082,0.38548579,226.14,226.07,25.08650628]
[1733159579088,0.38548579,226.14,226.08,0.25098]
[1733159579406,0.38548579,226.14,226.08,24.027864]
[1733159579983,20.65950628,226.1,226.03,4.427]
[1733159580206,20.65950628,226.1,226.01,20.65950628]
[1733159580207,20.65950628,226.08,226.01,20.65950628]
[1733159580407,0.38548579,226.07,226.01,20.65950628]
[1733159580800,21.04499207,226.12,226.05,0.12549]
[1733159581008,0.38548579,226.12,226.07,20.65950628]
[1733159581881,0.38548579,226.13,226.08,0.12549]
[1733159582087,20.65950628,226.12,226.05,20.65950628]
[1733159582285,21.04499207,226.11,226.04,0.12549]
[1733159582490,0.38548579,226.11,226.06,0.12549]
[1733159582693,0.38548579,226.18,226.07,0.12549]
[1733159582993,0.38548579,226.18,226.13,20.65950628]
[1733159583316,21.04499207,226.24,226.16,20.91048628]
[1733159583545,20.65950628,226.28,226.21,20.65950628]
[1733159583709,0.38548579,226.27,226.22,20.78499628]
[1733159583919,0.38548579,226.29,226.24,20.78499628]
[1733159584086,0.38548579,226.29,226.26,0.25098]
[1733159584411,0.38548579,226.35,226.26,0.12549]
[1733159584591,20.65950628,226.38,226.31,0.25098]
[1733159584793,20.65950628,226.33,226.25,44.43639028]
[1733159585110,20.65950628,226.26,226.22,4.427]
[1733159585407,0.38548579,226.32,226.22,4.427]
[1733159585408,0.38548579,226.32,226.23,24.027864]
[1733159585617,20.65950628,226.31,226.25,0.25098]
[1733159585912,20.65950628,226.28,226.25,0.12549]
[1733159586210,20.65950628,226.31,226.25,0.12549]
[1733159586394,20.65950628,226.33,226.26,0.12549]
[1733159586589,20.65950628,226.31,226.26,0.12549]
[1733159586808,0.38548579,226.3,226.26,0.12549]
[1733159587321,0.38548579,226.3,226.25,0.12549]
[1733159587608,20.65950628,226.27,226.21,23.902374]
[1733159587819,20.65950628,226.29,226.21,23.902374]
[1733159587992,0.38548579,226.28,226.22,0.12549]
[1733159588522,0.38548579,226.28,226.23,0.12549]
[1733159588686,20.65950628,226.31,226.25,0.12549]
[1733159588884,20.65950628,226.33,226.25,0.12549]
[1733159589095,0.38548579,226.32,226.26,0.12549]
[1733159590114,20.65950628,226.31,226.26,0.12549]
[1733159590616,0.38548579,226.37,226.31,0.25098]
[1733159590806,20.65950628,226.38,226.34,0.12549]
[1733159591020,0.38548579,226.37,226.34,0.12549]
[1733159591193,0.38548579,226.37,226.13,39.74]
[1733159591194,25.65950628,226.35,226.13,39.74]
[1733159591386,20.65950628,226.27,226.19,20.65950628]
[1733159591793,20.65950628,226.29,226.21,20.65950628]
[1733159592024,0.38548579,226.28,226.21,20.65950628]
[1733159592318,20.65950628,226.31,226.24,0.12549]
[1733159592517,0.38548579,226.3,226.24,0.25098]
[1733159593522,30.0,226.26,226.24,0.25098]
[1733159594606,21.04499207,226.25,226.2,23.902374]
[1733159594835,21.04499207,226.25,226.12,37.14070628]
[1733159594836,20.65950628,226.21,226.12,37.14070628]
[1733159595016,0.38548579,226.2,226.12,37.14070628]
[1733159595529,20.65950628,226.19,226.12,16.4812]
[1733159595702,0.38548579,226.18,226.12,16.4812]
[1733159595904,20.65950628,226.17,226.12,16.4812]
[1733159596208,20.65950628,226.15,226.08,20.65950628]
[1733159596407,0.38548579,226.14,226.08,20.65950628]
[1733159596925,0.38548579,226.14,226.09,0.12549]
[1733159597136,15.0123,226.22,226.09,0.12549]
[1733159597137,0.38548579,226.16,226.12,20.65950628]
[1733159597303,20.65950628,226.19,226.12,20.65950628]
[1733159597622,0.38548579,226.18,226.12,20.65950628]
[1733159598422,0.38548579,226.18,226.13,0.12549]
[1733159599524,0.38548579,226.18,226.12,20.65950628]
[1733159599525,20.65950628,226.17,226.12,0.12549]
[1733159599727,0.38548579,226.16,226.09,4.39362669]
[1733159600706,0.38548579,226.16,226.1,0.12549]
[1733159600913,0.38548579,226.16,226.1,20.78499628]
[1733159601112,20.65950628,226.21,226.12,20.91048628]
[1733159601313,0.38548579,226.2,226.15,0.12549]
[1733159602009,0.38548579,226.2,226.11,4.39362669]
[1733159602010,20.65950628,226.17,226.11,4.39362669]
[1733159602213,20.65950628,226.14,226.11,4.39362669]
[1733159602423,0.38548579,226.13,226.09,4.39362669]
[1733159602609,20.65950628,226.12,226.08,4.39362669]
[1733159602916,0.38548579,226.11,226.07,4.39362669]
[1733159603630,0.38548579,226.11,226.08,0.12549]
[1733159603827,0.38548579,226.12,226.08,0.12549]
[1733159604232,0.38548579,226.12,226.07,4.39362669]
[1733159604233,12.92263334,226.11,226.07,4.39362669]
[1733159604526,0.38548579,226.1,226.05,4.39362669]
[1733159605132,0.38548579,226.1,226.04,4.39362669]
[1733159605428,0.38548579,226.1,226.05,0.12549]
[1733159606071,0.38548579,226.1,226.04,4.39362669]
[1733159606072,20.67945256,226.06,226.04,4.39362669]
[1733159606333,21.06493835,226.05,226.02,4.39362669]
[1733159607235,21.06493835,226.05,225.98,4.39362669]
[1733159607408,21.06493835,226.05,225.97,25.07307925]
[1733159607605,0.38548579,226.05,226.0,0.12549]
[1733159607831,0.38548579,226.06,225.99,20.67945256]
[1733159608328,0.38548579,226.06,225.95,15.0021]
[1733159608329,0.38548579,226.06,226.02,0.12549]
[1733159608506,0.38548579,226.08,226.05,20.67945256]
[1733159608705,0.38548579,226.11,226.05,20.67945256]
[1733159608929,21.06493835,226.11,226.05,0.12549]
[1733159609612,20.67945256,226.09,226.05,0.12549]
[1733159609829,20.67945256,226.07,226.05,0.12549]
[1733159610152,0.38548579,226.06,226.01,20.67945256]
[1733159610337,0.38548579,226.08,226.01,20.67945256]
[1733159610524,20.67945256,226.07,226.01,20.67945256]
[1733159610863,0.38548579,226.06,225.99,20.80494256]
[1733159611033,0.38548579,226.06,226.0,0.12549]
[1733159611353,6.4863,226.12,225.99,20.80494256]
[1733159611354,20.67945256,226.1,226.02,20.80494256]
[1733159611651,0.38548579,226.09,226.05,0.12549]
[1733159611953,20.67945256,226.08,226.05,0.12549]
[1733159612448,20.67945256,226.13,226.05,20.67945256]
[1733159612665,20.67945256,226.1,226.06,0.12549]
[1733159612842,0.38548579,226.09,226.03,0.12549]
[1733159613234,0.38548579,226.09,226.03,0.25098]
[1733159614951,20.67945256,226.08,226.03,0.12549]
[1733159615153,20.67945256,226.06,226.0,0.12549]
[1733159615359,0.38548579,226.05,226.0,0.25098]
[1733159615651,0.38548579,226.05,226.03,0.12549]
[1733159615850,20.67945256,226.08,226.03,0.12549]
[1733159616066,0.38548579,226.07,226.03,0.12549]
[1733159616230,0.38548579,226.07,226.02,0.12549]
[1733159617328,0.38548579,226.07,226.02,0.25098]
[1733159619240,20.67945256,226.06,226.0,4.427]
[1733159619442,0.38548579,226.05,226.0,4.427]
[1733159620161,0.38548579,226.05,226.0,0.12549]
[1733159620540,20.67945256,226.04,226.0,0.12549]
[1733159620753,0.38548579,226.03,226.0,0.12549]
[1733159621255,0.38548579,226.03,225.98,0.25098]
[1733159621634,0.38548579,226.03,226.0,0.12549]
[1733159621862,0.38548579,226.05,226.02,0.12549]
[1733159622458,0.38548579,226.07,226.02,0.12549]
[1733159623535,0.38548579,226.07,226.02,4.67798]
[1733159623861,0.38548579,226.08,226.03,20.67945256]
[1733159625552,13.3165829,226.05,225.98,4.427]
[1733159625736,0.38548579,226.05,225.99,0.12549]
[1733159625936,0.38548579,226.05,226.0,4.427]
[1733159626338,13.3165829,226.05,226.0,4.427]
[1733159626857,13.3165829,226.05,225.99,0.12549]
[1733159627063,13.3165829,226.05,225.99,0.25098]
[1733159627640,12.93109711,226.04,225.98,4.427]
[1733159627960,12.93109711,226.0,225.94,4.427]
[1733159628149,0.38548579,225.99,225.95,0.12549]
[1733159628351,0.38548579,226.01,225.95,0.12549]
[1733159629258,13.3165829,226.01,225.95,0.25098]
[1733159629469,13.3165829,226.01,225.95,0.12549]
[1733159630645,13.3165829,226.01,225.95,0.25098]
[1733159630849,0.38548579,226.01,225.97,0.25098]
[1733159631044,12.93109711,226.03,225.97,0.25098]
[1733159631045,0.38548579,226.02,225.97,0.25098]
[1733159631256,0.38548579,226.02,225.98,4.427]
[1733159632348,0.38548579,226.02,225.96,0.12549]
[1733159632748,0.38548579,226.02,225.96,4.55249]
[1733159632960,12.93109711,226.01,225.92,20.0]
[1733159633169,0.38548579,226.0,225.92,32.93109711]
[1733159633377,0.38548579,226.06,225.99,12.93109711]
[1733159633543,13.3165829,226.06,225.99,12.93109711]
[1733159633868,0.38548579,226.06,225.95,12.93109711]
[1733159634070,12.93109711,226.03,225.95,12.93109711]
[1733159634248,0.38548579,226.02,225.96,0.12549]
[1733159635066,0.38548579,226.02,225.96,0.25098]
[1733159635269,12.93109711,226.03,225.98,4.427]
[1733159635577,0.38548579,226.06,226.0,4.427]
[1733159635757,0.38548579,226.06,226.0,17.35809711]
[1733159635944,0.38548579,226.07,226.03,12.93109711]
[1733159636146,12.93109711,226.1,226.03,17.35809711]
[1733159636366,13.3165829,226.09,226.03,4.427]
[1733159636975,12.93109711,226.08,226.03,4.427]
[1733159637149,0.38548579,226.07,226.01,4.67798]
[1733159638144,12.93109711,226.08,226.01,4.67798]
[1733159638485,0.38548579,226.15,226.08,4.427]
[1733159638769,13.3165829,226.15,226.08,4.427]
[1733159639353,0.38548579,226.15,226.11,0.12549]
[1733159639554,13.3165829,226.16,226.11,0.12549]
[1733159640077,0.38548579,226.16,226.11,0.12549]
[1733159640647,0.38548579,226.16,226.1,4.55249]
[1733159640947,6.3616,226.19,226.14,0.12549]
[1733159640948,0.38548579,226.19,226.14,0.12549]
[1733159641151,0.38548579,226.19,226.1,0.12549]
[1733159641152,13.3165829,226.19,226.12,12.93109711]
[1733159641371,12.93109711,226.18,226.12,0.12549]
[1733159641572,0.38548579,226.17,226.12,0.12549]
[1733159642069,0.38548579,226.17,226.09,0.12549]
[1733159642070,0.38548579,226.17,226.09,12.93109711]
[1733159642273,12.93109711,226.12,226.04,12.93109711]
[1733159642772,12.93109711,226.13,226.05,12.93109711]
[1733159642958,12.93109711,226.15,226.08,12.93109711]
[1733159643163,0.38548579,226.14,226.08,12.93109711]
[1733159643354,0.38548579,226.19,226.13,12.93109711]
[1733159644668,0.38548579,226.19,226.14,0.12549]
[1733159645275,12.93109711,226.22,226.14,13.05658711]
[1733159645576,0.38548579,226.21,226.14,13.05658711]
[1733159645748,0.38548579,226.24,226.17,13.05658711]
[1733159645946,0.38548579,226.25,226.21,12.93109711]
[1733159646145,12.93109711,226.28,226.2,12.93109711]
[1733159646146,0.38548579,226.27,226.2,12.93109711]
[1733159646352,13.3165829,226.27,226.21,0.12549]
[1733159646570,12.93109711,226.26,226.21,0.12549]
[1733159646883,12.93109711,226.22,226.14,12.93109711]
[1733159647057,11.2354,226.31,226.12,15.8617]
[1733159647058,12.93109711,226.2,226.15,0.12549]
[1733159647250,12.93109711,226.22,226.15,0.12549]
[1733159647455,0.38548579,226.21,226.15,0.12549]
[1733159648474,0.38548579,226.21,226.15,13.05658711]
[1733159649059,12.93109711,226.25,226.18,12.93109711]
[1733159649259,0.38548579,226.24,226.18,12.93109711]
[1733159649759,0.38548579,226.24,226.16,12.93109711]
[1733159649760,13.3165829,226.24,226.16,12.93109711]
[1733159649980,13.3165829,226.24,226.13,24.153354]
[1733159649981,12.93109711,226.21,226.14,12.93109711]
[1733159650185,12.93109711,226.19,226.12,28.79279711]
[1733159650493,12.93109711,226.24,226.17,12.93109711]
[1733159650783,13.3165829,226.23,226.15,12.93109711]
[1733159650983,13.3165829,226.23,226.16,4.427]
[1733159651490,12.93109711,226.21,226.16,4.427]
[1733159651662,0.38548579,226.2,226.16,4.427]
[1733159652060,0.38548579,226.2,226.14,0.12549]
[1733159652282,0.38548579,226.2,226.14,4.55249]
[1733159652467,12.93109711,226.19,226.15,4.427]
[1733159652670,0.38548579,226.18,226.15,4.427]
[1733159653466,0.38548579,226.18,226.16,4.427]
[1733159653667,12.93109711,226.17,226.16,4.427]
[1733159653972,12.93109711,226.17,226.1,4.427]
[1733159654288,0.38548579,226.16,226.1,4.427]
[1733159654791,12.93109711,226.15,226.02,22.6323]
[1733159654991,0.38548579,226.18,226.14,12.93109711]
[1733159655180,0.38548579,226.22,226.17,12.93109711]
[1733159655380,12.93109711,226.27,226.19,12.93109711]
[1733159655583,0.38548579,226.26,226.21,12.93109711]
[1733159655795,0.38548579,226.29,226.25,12.93109711]
[1733159656097,0.38548579,226.3,226.26,12.93109711]
[1733159656392,0.38548579,226.35,226.28,12.93109711]
[1733159656608,0.38548579,226.35,226.32,12.93109711]
[1733159656901,0.38548579,226.42,226.34,12.93109711]
[1733159657192,12.93109711,226.36,226.27,0.12549]
[1733159657399,12.93109711,226.33,226.27,0.25098]
[1733159657583,20.63593846,226.35,226.27,20.88691846]
[1733159657785,20.63593846,226.37,226.29,20.63593846]
[1733159658102,0.38548579,226.36,226.31,0.12549]
[1733159658572,0.38548579,226.36,226.3,0.25098]
[1733159659987,20.63593846,226.4,226.33,20.63593846]
[1733159660180,21.02142425,226.42,226.35,20.63593846]
[1733159660577,20.63593846,226.41,226.35,0.12549]
[1733159660799,21.02142425,226.4,226.32,20.63593846]
[1733159660975,21.02142425,226.4,226.33,0.12549]
[1733159661301,20.63593846,226.39,226.31,20.63593846]
[1733159661482,0.38548579,226.38,226.32,20.76142846]
[1733159661681,0.38548579,226.38,226.33,20.63593846]
[1733159661987,0.38548579,226.39,226.33,20.63593846]
[1733159662976,21.02142425,226.39,226.32,20.76142846]
[1733159663369,20.63593846,226.41,226.34,20.63593846]
[1733159663593,6.2976,226.48,226.33,20.76142846]
[1733159663594,21.02142425,226.4,226.33,20.76142846]
[1733159663776,21.02142425,226.4,226.34,0.12549]
[1733159664974,0.38548579,226.4,226.35,0.12549]
[1733159665174,0.38548579,226.41,226.35,0.12549]
[1733159665369,21.02142425,226.41,226.35,0.12549]
[1733159665677,20.63593846,226.39,226.34,0.12549]
[1733159665885,20.63593846,226.4,226.32,20.76142846]
[1733159666198,20.63593846,226.4,226.34,0.12549]
[1733159666379,0.38548579,226.39,226.34,0.12549]
[1733159666575,21.02142425,226.39,226.32,0.12549]
[1733159666775,21.02142425,226.39,226.32,0.25098]
[1733159666970,21.02142425,226.39,226.32,20.88691846]
[1733159667181,0.38548579,226.39,226.32,20.88691846]
[1733159667796,0.38548579,226.39,226.34,20.63593846]
[1733159667997,0.38548579,226.4,226.35,0.25098]
[1733159668902,21.02142425,226.4,226.35,0.25098]
[1733159669069,20.63593846,226.38,226.31,23.902374]
[1733159669270,20.63593846,226.38,226.32,0.12549]
[1733159669574,20.63593846,226.4,226.33,0.12549]
[1733159669775,0.38548579,226.39,226.33,0.12549]
[1733159670603,21.02142425,226.39,226.32,0.25098]
[1733159671898,20.63593846,226.42,226.35,0.25098]
[1733159672198,21.02142425,226.41,226.35,0.25098]
[1733159673407,20.63593846,226.4,226.35,0.12549]
[1733159673578,20.63593846,226.39,226.34,0.12549]
[1733159674079,20.63593846,226.36,226.31,0.12549]
[1733159674382,20.63593846,226.39,226.31,20.76142846]
[1733159674586,0.38548579,226.38,226.32,0.12549]
[1733159674796,20.63593846,226.41,226.34,0.12549]
[1733159675101,20.63593846,226.42,226.36,0.25098]
[1733159675282,20.63593846,226.39,226.32,20.63593846]
[1733159675485,21.02142425,226.38,226.31,4.47665314]
[1733159675682,21.02142425,226.38,226.31,0.12549]
[1733159675993,21.02142425,226.38,226.32,0.12549]
[1733159676194,6.2976,226.48,226.32,20.76142846]
[1733159676195,20.63593846,226.4,226.32,20.76142846]
[1733159676385,20.63593846,226.4,226.33,0.12549]
[1733159676897,20.63593846,226.41,226.34,20.63593846]
[1733159677203,20.63593846,226.42,226.35,20.76142846]
[1733159677407,0.38548579,226.41,226.35,20.76142846]
[1733159677708,0.38548579,226.41,226.34,0.25098]
[1733159677709,21.02142425,226.41,226.34,0.25098]
[1733159677901,20.63593846,226.39,226.34,0.12549]
[1733159678290,20.63593846,226.4,226.33,20.88691846]
[1733159678608,20.63593846,226.41,226.34,20.63593846]
[1733159679002,20.63593846,226.45,226.37,20.63593846]
[1733159679187,20.63593846,226.43,226.36,20.63593846]
[1733159679387,21.02142425,226.43,226.37,0.25098]
[1733159679595,12.8882453,226.43,226.37,0.25098]
[1733159680789,12.8882453,226.42,226.37,0.12549]
[1733159681196,12.8882453,226.42,226.36,0.12549]
[1733159681511,12.8882453,226.43,226.36,0.12549]
[1733159681804,12.8882453,226.42,226.36,0.12549]
[1733159681990,25.7764906,226.38,226.26,6.4118]
[1733159682192,25.7764906,226.38,226.25,15.9985]
[1733159682193,12.8882453,226.3,226.25,15.9985]
[1733159682600,12.8882453,226.38,226.25,15.9985]
[1733159682601,20.0,226.35,226.25,15.9985]
[1733159682907,12.8882453,226.29,226.25,15.9985]
[1733159683292,12.8882453,226.31,226.25,15.9985]
[1733159683688,12.8882453,226.31,226.26,0.12549]
[1733159683888,12.8882453,226.35,226.28,12.8882453]
[1733159684095,12.8882453,226.39,226.31,12.8882453]
[1733159684309,12.8882453,226.38,226.3,13.2647153]
[1733159684487,12.8882453,226.37,226.31,12.8882453]
[1733159684687,20.284,226.45,226.29,20.12549]
[1733159684904,5.0,226.44,226.26,0.25098]
[1733159685112,20.284,226.45,226.27,0.12549]
[1733159685499,20.0,226.41,226.27,0.12549]
[1733159685701,12.8882453,226.32,226.26,0.25098]
[1733159685902,12.8882453,226.34,226.26,13.0137353]
[1733159686609,12.8882453,226.35,226.28,12.8882453]
[1733159686912,12.8882453,226.37,226.29,12.8882453]
[1733159687117,12.8882453,226.37,226.3,0.25098]
[1733159687611,12.8882453,226.36,226.3,0.25098]
[1733159687797,12.8882453,226.35,226.28,0.25098]
[1733159688115,12.8882453,226.34,226.28,0.25098]
[1733159688816,12.8882453,226.33,226.26,13.0137353]
[1733159689190,12.8882453,226.33,226.27,0.12549]
[1733159690016,12.8882453,226.35,226.27,0.12549]
[1733159690395,12.8882453,226.33,226.27,0.12549]
[1733159690698,12.8882453,226.33,226.26,13.0137353]
[1733159690903,12.8882453,226.33,226.26,12.8882453]
[1733159691419,12.8882453,226.33,226.27,0.12549]
[1733159691601,12.8882453,226.35,226.28,12.8882453]
[1733159691803,20.0,226.42,226.19,22.3422]
[1733159691804,12.8882453,226.29,226.19,22.3422]
[1733159692121,12.8882453,226.29,226.21,0.25098]
[1733159692414,12.8882453,226.29,226.22,12.8882453]